Cogmind - Beta 15 @@@ ROGUE MODE // 2025.06.14 @ 18:36:34 // Winter2019/RPGLIKE Player: Jack Result: Self-destructed Performance ------------- Evolutions (1) 500 Regions Visited (5) 1000 Robots Destroyed (8) 40 Value Destroyed (204) 204 Prototype IDs (23) 460 Alien Tech Used (0) 0 Bonus (492) 492 TOTAL SCORE: 2696 Bonus ------- Pacifist 200 Aligned with FarCom 300 Friendly Fire -8 Cogmind --------- Core Integrity 68/700 Matter 300/300 Energy 59/200 System Corruption 8% Temperature Cool (0) Movement Core (100) Ox1 Location -8/Mines Parts ------- > --- POWER (1) -------- (None) > --- PROPULSION (2) --- (None) > --- UTILITY (1) ------ (None) > --- WEAPON (4) ------- Latent Energy Streamer > --- INVENTORY (0) ---- (None) Peak State ------------ > --- POWER ------------ (None) > --- PROPULSION ------- (None) > --- UTILITY ---------- (None) > --- WEAPON ----------- Latent Energy Streamer Light Assault Rifle Light Assault Rifle > --- INVENTORY -------- (None) [Rating: 12] Favorites ----------- Power None Propulsion None Utility None Weapon Light Assault Rifle Energy Cannon Latent Energy Streamer Ballistic Gun Light Assault Rifle Build | -11 -10 -9 -9 -9 -8 ------- Run | Yrd Mat Mat Min Exi Min Slots Evolved 4 | 4 . . . . . Power . | . . . . . . Propulsion 1 | 1 . . . . . Utility . | . . . . . . Weapon 3 | 3 . . . . . Parts Attached 3 | 2 . . . 1 . Power . | . . . . . . Engine . | . . . . . . Core . | . . . . . . Reactor . | . . . . . . Propulsion . | . . . . . . Treads . | . . . . . . Leg . | . . . . . . Wheel . | . . . . . . Hover . | . . . . . . Flight . | . . . . . . Utility . | . . . . . . Device . | . . . . . . Storage . | . . . . . . Processor . | . . . . . . Hackware . | . . . . . . Protection . | . . . . . . Artifact . | . . . . . . Weapon 3 | 2 . . . 1 . Energy Gun . | . . . . . . Energy Cannon 1 | . . . . 1 . Ballistic Gun 2 | 2 . . . . . Ballistic Cannon . | . . . . . . Launcher . | . . . . . . Special Weapon . | . . . . . . Impact Weapon . | . . . . . . Slashing Weapon . | . . . . . . Piercing Weapon . | . . . . . . Special Melee Weapon . | . . . . . . Unidentified Prototypes . | . . . . . . Parts Lost . | . . . . . . Power . | . . . . . . Propulsion . | . . . . . . Utility . | . . . . . . Weapon . | . . . . . . Highest Loss Streak . | . . . . . . To Critical Strikes . | . . . . . . Average Backups . | . . . . . . Power . | . . . . . . Propulsion . | . . . . . . Utility . | . . . . . . Weapon . | . . . . . . Tool/Special . | . . . . . . Unused Backups . | . . . . . . Power . | . . . . . . Propulsion . | . . . . . . Utility . | . . . . . . Weapon . | . . . . . . Tool/Special . | . . . . . . Average Slot Usage (%) 25 | . 25 25 25 32 21 Energy Cannon 5 | . . . . 7 12 Ballistic Gun 19 | . 25 25 25 25 9 Peak Build Rating 12 | 2 2 2 2 12 12 Average Rating 6 | 1 2 2 2 8 10 On Entrance 3 | . 2 2 2 2 12 Naked Turns . | . . . . . . Heaviest Build 12 | 2 2 2 2 12 12 Greatest Support 8 | 8 8 8 8 8 8 Greatest Overweight (x) 1 | . . . . 1 1 Average Overweight (x) . | . . . . . 1 Largest Inventory Capacity . | . . . . . . Average Capacity . | . . . . . . Most Carried . | . . . . . . Average Carried . | . . . . . . Final Capacity . | . . . . . . Final Carried . | . . . . . . Class Distribution -------------------- 73% | Mutant 13% | Gunner 12% | Skirmisher Dominant Class ---------------- Mutant | -10/Materials Mutant | -9/Materials Mutant | -9/Mines Gunner | -9/Exiles Mutant | -8/Mines Resources | -11 -10 -9 -9 -9 -8 ----------- Run | Yrd Mat Mat Min Exi Min Matter Collected 288 | 170 . . 58 . 60 Remotely . | . . . . . . Salvage Created 255 | . . . . . 255 Parts 25 | . . . . . 25 Haulers Intercepted . | . . . . . . Recyclers Shooed . | . . . . . . Parts Field Recycled . | . . . . . . Retrieved Matter . | . . . . . . Parts Self-Destructed . | . . . . . . Prevented . | . . . . . . Kills | -11 -10 -9 -9 -9 -8 ------- Run | Yrd Mat Mat Min Exi Min Combat Hostiles Destroyed 8 | . . . . . 8 Guns 3 | . . . . . 3 AOE 5 | . . . . . 5 Classes Destroyed 2 | . . . . . 2 Swarmer 5 | . . . . . 5 Grunt 3 | . . . . . 3 Best Kill Streak 3 | . . . . . 3 Combat Bots Only 3 | . . . . . 3 Max Kills in Single Turn 3 | . . . . . 3 Gunslinging . | . . . . . . Exploded 3 | . . . . . 3 Melee . | . . . . . . Uniques/NPCs Destroyed . | . . . . . . Combat | -11 -10 -9 -9 -9 -8 -------- Run | Yrd Mat Mat Min Exi Min Hostile Shots Fired 57 | . . 1 7 . 49 Missed 13 | . . 1 2 . 10 Hits 44 | . . . 5 . 39 Projectile 44 | . . . 5 . 39 Critical Strikes 4 | . . . . . 4 Damage Taken 738 | . . . 68 . 670 Core 632 | . . . 64 . 568 Absorbed by Shields . | . . . . . . Redirected to Core 382 | . . . 12 . 370 Core Remaining (%) 100 | 100 100 . . . . Volleys Fired 33 | . . 1 3 . 29 Largest 2 | . . 2 2 . 2 Hottest 60 | . . 40 40 . 60 Shots Fired 62 | . . 2 6 . 54 Gun 58 | . . 2 6 . 50 Cannon 4 | . . . . . 4 Launcher . | . . . . . . Special . | . . . . . . Kinetic 58 | . . 2 6 . 50 Thermal . | . . . . . . Explosive . | . . . . . . Electromagnetic 4 | . . . . . 4 Robot Hit Streak 11 | . . 1 1 . 11 Robot Miss Streak 3 | . . 1 2 . 3 Penetration Max . | . . . . . . Secondary Targets . | . . . . . . Shots Hit Robots 43 | . . 1 2 . 40 Core Hits 19 | . . 1 . . 18 Critical Kills . | . . . . . . Critical Parts Destroyed . | . . . . . . Critical Strikes . | . . . . . . Melee Attacks . | . . . . . . Impact . | . . . . . . Slashing . | . . . . . . Piercing . | . . . . . . Sneak Attacks . | . . . . . . Combat Hostiles . | . . . . . . Follow-up Attacks . | . . . . . . Damage Inflicted 590 | . . 8 18 . 564 Guns 364 | . . 8 18 . 338 Cannons 5 | . . . . . 5 Explosions 221 | . . . . . 221 Melee . | . . . . . . Ramming . | . . . . . . Kinetic 364 | . . 8 18 . 338 Thermal . | . . . . . . Explosive . | . . . . . . Electromagnetic 226 | . . . . . 226 Impact . | . . . . . . Slashing . | . . . . . . Piercing . | . . . . . . Highest Corruption 8 | . . . . . 8 Average Corruption 4 | . . . . . 4 Corruption Purged . | . . . . . . Corruption Blocked . | . . . . . . Effects 1 | . . . . . 1 Message Errors 1 | . . . . . 1 Overload Shots . | . . . . . . Overflow Damage . | . . . . . . Projectiles . | . . . . . . Explosions . | . . . . . . Melee . | . . . . . . Knockbacks . | . . . . . . Impact . | . . . . . . Kinetic . | . . . . . . Secondary . | . . . . . . Self-Inflicted Damage 31 | . . . . . 31 Shots 1 | . . . . . 1 Rammed . | . . . . . . Targets Rammed . | . . . . . . Kicked . | . . . . . . Crushed . | . . . . . . Highest Temperature 62 | . . . . . 62 Average Temperature 16 | . . . . . 16 Received Heat Transfer 453 | . . . 39 . 414 Siege Activations . | . . . . . . Martial Activations . | . . . . . . Shielding Activations . | . . . . . . Robots Disrupted . | . . . . . . Combat Hostiles . | . . . . . . Robots Corrupted . | . . . . . . Combat Hostiles . | . . . . . . Parts Fried . | . . . . . . Impact Corruptions . | . . . . . . Robots Melted . | . . . . . . Combat Hostiles . | . . . . . . Parts Melted . | . . . . . . Heat Transferred . | . . . . . . Parts Sabotaged . | . . . . . . Parts Stolen . | . . . . . . Parts Stripped . | . . . . . . Power Chain Reactions . | . . . . . . Latent Energy Used 379 | . . . . . 379 LE Corruption 8 | . . . . . 8 Alert | -11 -10 -9 -9 -9 -8 ------- Run | Yrd Mat Mat Min Exi Min Maximum Alert Level . | . . . . . . Low Security (%) 100 | 100 100 100 100 . 100 Level 1 . | . . . . . . Level 2 . | . . . . . . Level 3 . | . . . . . . Level 4 . | . . . . . . Level 5 . | . . . . . . High Security . | . . . . . . Max Security . | . . . . . . Peak Influence 129 | . . 15 30 . 129 Initial 5 | . . . 5 . . Average 23 | . . . 4 . 52 Influence Increases 254 | . . 15 30 . 209 Destroy 0b10 Robot/C 160 | . . . . . 160 Destroy Leader 20 | . . . . . 20 Disable Machine 15 | . . . . . 15 Destroy Structure 14 | . . . . . 14 Lose Combat Pursuer 45 | . . 15 30 . . Influence Decreases 155 | . . . 45 . 110 Entered New Map 10 | . . . 10 . . Time Decay 145 | . . . 35 . 110 Squads Dispatched 2 | . 1 1 . . . Investigation . | . . . . . . Extermination . | . . . . . . Reinforcement 2 | . 1 1 . . . Assault . | . . . . . . Garrison . | . . . . . . Intercept . | . . . . . . Searches Triggered . | . . . . . . Construction Impeded . | . . . . . . Haulers Reinforced . | . . . . . . Active Scanning Responses . | . . . . . . Cargo Convoy Interrupts . | . . . . . . Stealth | -11 -10 -9 -9 -9 -8 --------- Run | Yrd Mat Mat Min Exi Min Distress Signals . | . . . . . . Communications Jammed . | . . . . . . Distress Signals . | . . . . . . Times Spotted 19 | . 2 7 5 . 5 Peak Tracking Total 5 | . 2 5 3 . 3 Tactical Retreats 2 | . . 1 1 . . Traps | -11 -10 -9 -9 -9 -8 ------- Run | Yrd Mat Mat Min Exi Min Traps Triggered . | . . . . . . Indirectly . | . . . . . . Trap Hack Attempts . | . . . . . . Triggered . | . . . . . . Disarmed . | . . . . . . Reprogrammed . | . . . . . . Reused . | . . . . . . Traps Extracted . | . . . . . . Installed . | . . . . . . Triggered . | . . . . . . Machines | -11 -10 -9 -9 -9 -8 ---------- Run | Yrd Mat Mat Min Exi Min Machines Disabled 1 | . . . . . 1 Max in Single Turn 1 | . . . . . 1 Machines Repaired . | . . . . . . Machines Dismantled . | . . . . . . Machines Sabotaged . | . . . . . . Overloaded Fab Kills . | . . . . . . Hacking | -11 -10 -9 -9 -9 -8 --------- Run | Yrd Mat Mat Min Exi Min Machines Accessed 2 | . . 1 . 1 . Terminals 1 | . . 1 . . . Fabricators . | . . . . . . Repair Stations . | . . . . . . Recycling Units . | . . . . . . Scanalyzers . | . . . . . . Garrison Access . | . . . . . . Total Hacks 6 | . . 5 . 1 . Successful 2 | . . 1 . 1 . Failed 4 | . . 4 . . . Catastrophic . | . . . . . . Database Lockouts . | . . . . . . Manual 6 | . . 5 . 1 . Terminals 5 | . . 5 . . . Fabricators . | . . . . . . Repair Stations . | . . . . . . Recycling Units . | . . . . . . Scanalyzers . | . . . . . . Garrison Access . | . . . . . . Terminal Hacks 2 | . . 1 . 1 . Part Schematic 1 | . . 1 . . . Proto ID Catalog 1 | . . . . 1 . Fabricator Hacks . | . . . . . . Repair Station Hacks . | . . . . . . Recycling Unit Hacks . | . . . . . . Scanalyzer . | . . . . . . Garrison Access Hacks . | . . . . . . Unauthorized Hacks . | . . . . . . Terminals . | . . . . . . Fabricators . | . . . . . . Repair Stations . | . . . . . . Recycling Units . | . . . . . . Scanalyzers . | . . . . . . Garrison Access . | . . . . . . Data Cores Recovered . | . . . . . . Used . | . . . . . . Hacking Detections . | . . . . . . Full Trace Events . | . . . . . . Feedback Events . | . . . . . . Feedback Blocked . | . . . . . . Robot Schematics Acquired . | . . . . . . Robots Built . | . . . . . . Authchips . | . . . . . . Time . | . . . . . . Total Robot Build Rating . | . . . . . . Part Schematics Acquired 1 | . . 1 . . . Parts Built . | . . . . . . Authchips . | . . . . . . Time . | . . . . . . Total Part Build Rating . | . . . . . . Parts Repaired . | . . . . . . Time . | . . . . . . Parts Recycled . | . . . . . . Recycled Matter . | . . . . . . Retrieved Matter . | . . . . . . Retrieved Components . | . . . . . . Parts Scanalyzed . | . . . . . . Part Schematics Acquired . | . . . . . . Parts Damaged . | . . . . . . Bothacking | -11 -10 -9 -9 -9 -8 ------------ Run | Yrd Mat Mat Min Exi Min Used RIF Installer . | . . . . . . Robots Hacked . | . . . . . . Non-combat . | . . . . . . Combat . | . . . . . . Robot Hacks Applied . | . . . . . . Relay Couplers Released . | . . . . . . Fabnet Peak Effective % . | . . . . . . Robots Rewired . | . . . . . . Allies Hacked . | . . . . . . Hacks Repelled . | . . . . . . Allies | -11 -10 -9 -9 -9 -8 -------- Run | Yrd Mat Mat Min Exi Min Total Allies . | . . . . . . Largest Group . | . . . . . . Highest-Rated Group . | . . . . . . Highest-Rated Ally . | . . . . . . Total Orders . | . . . . . . Ally Attacks . | . . . . . . Total Damage . | . . . . . . Kills . | . . . . . . Allies Corrupted . | . . . . . . Allies Melted . | . . . . . . Intel | -11 -10 -9 -9 -9 -8 ------- Run | Yrd Mat Mat Min Exi Min Active Infowar (turns) . | . . . . . . Robot Analysis Total . | . . . . . . Derelict Logs Recovered 2 | . . . 2 . . Drone Launches . | . . . . . . Drone Recoveries . | . . . . . . Exploration | -11 -10 -9 -9 -9 -8 ------------- Run | Yrd Mat Mat Min Exi Min Turns Passed 790 | 17 69 75 200 169 260 Spaces Moved 935 | 27 136 143 299 226 104 Core 935 | 27 136 143 299 226 104 Treads . | . . . . . . Legs . | . . . . . . Wheels . | . . . . . . Hover . | . . . . . . Flight . | . . . . . . Fastest Speed 50 | 50 50 50 50 50 100 Average Speed 61 | 50 50 50 50 74 100 Slowest Speed 100 | 50 50 50 50 100 100 Overloaded Moves . | . . . . . . Propulsion Burnouts . | . . . . . . Robots Hopped . | . . . . . . Potential Cave-ins . | . . . . . . Cave-ins Triggered . | . . . . . . Exploration Rate (%) 36 | 3 35 18 86 61 18 Regions Visited 5 Branch Regions 3 Pre-discovered Areas 1 | . . . 1 . . Known Exits Taken . | . . . . . . Unknown Exits Taken 5 | 1 1 1 1 1 . Scrap Searched 2 | . . . 1 . 1 Spaces Dug . | . . . . . . Terrain Destroyed 19 | . . . . . 19 Melee . | . . . . . . Projectile . | . . . . . . AOE 19 | . . . . . 19 Terrain Rammed . | . . . . . . Walls Destroyed . | . . . . . . Machines Disabled . | . . . . . . Actions | -11 -10 -9 -9 -9 -8 --------- Run | Yrd Mat Mat Min Exi Min Total 1095 | 28 136 144 344 226 217 Wait 127 | . 1 1 43 . 82 Move 930 | 26 135 142 298 225 104 Hop . | . . . . . . Pick Up . | . . . . . . Fast Attach 3 | 2 . . . 1 . Attach . | . . . . . . Detach . | . . . . . . Swap . | . . . . . . Drop 2 | . . . . . 2 Fire 33 | . . 1 3 . 29 Melee . | . . . . . . Ram . | . . . . . . Kick . | . . . . . . Crush . | . . . . . . Escape Stasis . | . . . . . . Rewire . | . . . . . . Trap . | . . . . . . Miscellaneous . | . . . . . . Route ------- -11/Scrapyard -10/Materials -9/Materials -9/Mines (discovered 4 exits: [*Mat x2] / *Exi / [*Zio]) -9/Exiles (discovered 2 exits: [*Min x2]) -8/Mines (discovered 1 exit: [*Mat]) History --------- Turn | Location | Event 2 | -11/Scrapyard | Met Revision 17 2 | -11/Scrapyard | Upgraded with Propulsion slot (x1) 2 | -11/Scrapyard | Upgraded with Weapon slot (x3) 3 | -11/Scrapyard | Discovered new exit (range 16) 18 | -11/Scrapyard | Entered Materials 83 | -10/Materials | Discovered new exit (range 5) 87 | -10/Materials | Entered another Materials area 89 | -9/Materials | Reached level 2 125 | -9/Materials | Discovered new exit (range 8) 162 | -9/Materials | Entered Mines 196 | -9/Mines | A Derelict revealed a hidden shortcut to a safe place 242 | -9/Mines | A weapon hastily lodged in a ceiling crevice suddenly fell to the ground 309 | -9/Mines | Learned Materials non-interactive machine intel 314 | -9/Mines | Build established: Mutant 319 | -9/Mines | Received a Rocket Launcher from a helpful Derelict 328 | -9/Mines | Discovered new exit (range 6) 343 | -9/Mines | Learned location of 1 exit from Proximity Caves 344 | -9/Mines | Discovered new exit (range 8) 346 | -9/Mines | Learned location of Storage (-7) 360 | -9/Mines | Deemed a non-threat by the Exiles lab entrance 360 | -9/Mines | Discovered new exit (range 5) 362 | -9/Mines | Entered Exiles 371 | -9/Exiles | Discovered new exit (range 15) 376 | -9/Exiles | Met 8R-AWN 383 | -9/Exiles | Met EX-HEX 397 | -9/Exiles | Met EX-BIN 403 | -9/Exiles | Aligned with FarCom system 404 | -9/Exiles | Given EX-Vault access code 417 | -9/Exiles | Opened EX-Vault 420 | -9/Exiles | Found Latent Energy Streamer 442 | -9/Exiles | Warned to stay clear of 0b10 Research branches 473 | -9/Exiles | Met EX-DEC 518 | -9/Exiles | Discovered new exit (range 14) 531 | -9/Exiles | Left Exiles lab with Latent Energy Streamer 531 | -9/Exiles | Entered Mines 559 | -8/Mines | Core integrity fell below 50% 588 | -8/Mines | Core integrity fell below 20% 588 | -8/Mines | Reached level 3 663 | -8/Mines | Discovered new exit (range 12) 791 | -8/Mines | Self-destructed Last Messages --------------- Receiving FarCom transmissions... Critical hit (Burn: +37). Reached level 3. G-50 Soldier destroyed. G-47 Trooper destroyed. Critical hit (Burn: +37). Upgraded: Core Integrity (+100) Upgraded: Energy Storage (+50) G-47 Trooper destroyed. Acquired 60 matter. Dropped Lgt. Assault Rifle. =MLPD:L03#:H3YE5D6WB%J Y EXIT=FOUND U-05 Engineer lays Concrete. S-10 Pest destroyed. Searching scrap... Found Shield Generator. Found 44 Matter. Seismic Survey Station disabled. S-10 Pest destroyed. Map ----- +----------------------------------------------------+ | | | ???????????????????????????????????????????? | | ???????????????????????????????????????????? | | ???????????????????????????????????????????? | | ???????????????????????????????????????????? | | ???????????????????????????????????????????? | | ???????????????????????????????????????????? | | ???????????????????????????????????????????? | | ???????????????????????????????????????????? | | ???????????????????????????????????????????? | | ???????????????? ????????????????????????? | | ???????????????? ????????????????????????? | | ???????????????? ????????????????????????? | | ???????????????? ????????????????????????? | | ???????????????? ????????????????????????? | | ???????????????? ????????????????????????? | | ???????????????? ????????????????????????? | | ???????????????? ????????????????????????? | | ???????????????? ????????????????????????? | | ???????????????? #????????????????????????? | | ????????????????# #????????????????????????? | | ????????????????# #????????????????????????? | | ????????????????# #????????????????????????? | | ????????????????# #????????????????????????? | | ???#s%=s ###### ####?????????????????????? | | ???# * u @ #?????????????????????? | | ???# ######### ###############???????? | | ???????????????????# *[[*% #?????? | | ???????????????????########%####### #?????? | | ??????????????????????????#%#??????????????? | | ??????????????????????????#=#??????????????? | | ??????????????????????????#=#??????????????? | | ??????????????????????????# #??????????????? | | ?????????####?????????????# #??????????????? | | ????????## ##????????????# #??????????????? | | ????????# #????????????#!#??????????????? | | ????????# < ##############%#??????????????? | | ????????# #??????????????? | | ????????# ################??????????????? | | ????????## ##?????????????????????????????? | | ?????????# ##??????????????????????????????? | | ?????????# #???????????????????????????????? | | ?????????# #???????????????????????????????? | | ?????????# #???????????????????????????????? | | ?????????# #???????????????????????????????? | | ?????????# #???????????????????????????????? | | ?????????# #???????????????????????????????? | | ?????????# #???????????????????????????????? | | ?????????# #?####??????????????????????????? | | ?????????# ###""#??????????????????????????? | +----------------------------------------------------+ Best States ------------- Heat Dissipation 25 Energy Generation 5 Energy Capacity 200 Matter Stores 300 Matter Capacity 300 Sight Range 16 Terrain Scan Density 10 Evasion (%) 50 Offensive Hacking 15 Item Schematics ----------------- Shield Generator | -9/Materials | Hacked Robot Schematics ------------------ None Fabricated ------------ Nothing Repaired ---------- Nothing Alien Tech Used ----------------- None Achievements -------------- None Challenges ------------ None RPGLIKE | -11 -10 -9 -9 -9 -8 --------- Run | Yrd Mat Mat Min Exi Min Levels Raised 2 | . . 1 . . 1 XP Earned 6925 | 3000 100 1500 500 350 1475 XP Spent 4685 | 3000 . 1200 . 200 285 Upgrades 12 | 5 . 3 . 1 3 Propulsion Slot 1 | 1 . . . . . Weapon Slot 3 | 3 . . . . . Core Integrity 2 | . . . . . 2 Energy Storage 2 | . . . . 1 1 Mass Support 1 | 1 . . . . . Hack Attack % 3 | . . 3 . . . Protomatter Created 56 | . . . . . 56 Protomatter Decayed . | . . . . . . Game ------ Seed SmartScatterMediator Manual? 0 Play Time 00:08:09 Cumulative 292.1 hours Start 2025.06.14 @ 16:13:15 End 2025.06.14 @ 18:36:34 Sessions 2 Manual Loads 0 Difficulty Rogue Special Mode Winter2019/RPGLIKE Game No. 288 Rogue 99 Adventurer 177 Explorer 12 Win Type - Total 65 Types 19/1/16/2/12/0/4/5/0/6 Lore% 57 Gallery% 56 Achievement% 72 Wizard Run 0 Options --------- Layout 0 ASCII 0 Keyboard 0 Movement Numpad Keybinds 0 Fullscreen 2 Font 12/Smallcaps Map View 83x54 Zoom Use 13% Tactical HUD 0 Map Filters NONE Filters NONE Steam 1 RUN: eca95095-1bb7-45f5-8818-47cd5523be49